fUSD/lending_fUSD_20240503
["ID","MTS","AMOUNT","RATE_DAILY","PERIOD"]
[325343797,1714745447869,-500.0,0.00043835,30]
[325343798,1714745447879,-500.0,0.00043835,30]
[325343799,1714745447889,-524.8706534,0.00043835,30]
[325343800,1714745447900,-234.02,0.00043835,30]
[325343801,1714745447909,-500.0,0.00043835,30]
[325343802,1714745447919,-500.0,0.00043835,30]
[325343803,1714745447928,-1619.36,0.00043835,30]
[325343804,1714745447938,-506.97045791,0.00043835,30]
[325343805,1714745447948,-500.0,0.00043835,30]
[325343806,1714745447957,-848.74,0.00043835,30]
[325343807,1714745447969,-500.0,0.00043835,30]
[325343808,1714745447980,-1589.48,0.00043835,30]
[325343809,1714745447989,-500.0,0.00043835,30]
[325343810,1714745447999,-4505.67,0.00043835,30]
[325343811,1714745448008,-500.29472718,0.00043835,30]
[325343812,1714745448018,-500.0,0.00043835,30]
[325343813,1714745448027,-500.0,0.00043835,30]
[325343814,1714745448036,-500.0,0.00043835,30]
[325343815,1714745448045,-500.0,0.00043835,30]
[325343816,1714745448055,-500.0,0.00043835,30]
[325343817,1714745448064,-1307.73,0.00043835,30]
[325343818,1714745448073,-538.03,0.00043835,30]
[325343819,1714745448082,-1601.46,0.00043835,30]
[325343820,1714745448091,-973.73,0.00043835,30]
[325343821,1714745448100,-501.03336737,0.00043835,30]
[325343822,1714745448109,-500.0,0.00043835,30]
[325343823,1714745448120,-1260.69,0.00043835,30]
[325343824,1714745448130,-500.0,0.00043835,30]
[325343825,1714745448139,-500.0,0.00043835,30]
[325343826,1714745448148,-1267.97,0.00043835,30]
[325343827,1714745448158,-2669.79,0.00043835,30]
[325343828,1714745448167,-500.0,0.00043835,30]
[325343829,1714745448176,-500.0,0.00043835,30]
[325343830,1714745448185,-500.0,0.00043835,30]
[325343831,1714745448195,-500.0,0.00043835,30]
[325343832,1714745448204,-781.08,0.00043835,30]
[325343833,1714745448213,-792.07,0.00043835,30]
[325343834,1714745448223,-1232.68,0.00043835,30]
[325343835,1714745448232,-500.0,0.00043835,30]
[325343836,1714745448241,-570.38,0.00043835,30]
[325343837,1714745448250,-500.0,0.00043835,30]
[325343838,1714745448260,-500.0,0.00043835,30]
[325343839,1714745448269,-1861.73,0.00043835,30]
[325343840,1714745448279,-562.93085989,0.00043835,30]
[325343841,1714745448288,-500.0,0.00043835,30]
[325343842,1714745448298,-500.0,0.00043835,30]
[325343843,1714745448307,-709.73,0.00043835,30]
[325343844,1714745448316,-1831.42,0.00043835,30]
[325343845,1714745448326,-1008.86,0.00043835,30]
[325343846,1714745448335,-500.0,0.00043835,30]
[325343847,1714745448344,-1683.7,0.00043835,30]
[325343848,1714745448353,-561.56,0.00043835,30]
[325343849,1714745448362,-500.0,0.00043835,30]
[325343850,1714745448374,-500.0,0.00043835,30]
[325343851,1714745448383,-623.99,0.00043835,30]
[325343852,1714745448393,-500.0,0.00043835,30]
[325343853,1714745448403,-1456.68,0.00043835,30]
[325343854,1714745448412,-500.0,0.00043835,30]
[325343855,1714745448422,-3671.52,0.00043835,30]
[325343856,1714745448431,-500.0,0.00043835,30]
[325343857,1714745448441,-500.0,0.00043835,30]
[325343858,1714745448450,-3261.83,0.00043835,30]
[325343859,1714745448460,-500.0,0.00043835,30]
[325343860,1714745448470,-500.0,0.00043835,30]
[325343861,1714745448479,-751.94,0.00043835,30]
[325343862,1714745448489,-500.0,0.00043835,30]
[325343863,1714745448499,-500.0,0.00043835,30]
[325343864,1714745448508,-759.84,0.00043835,30]
[325343865,1714745448518,-838.05,0.00043835,30]
[325343866,1714745448528,-500.0,0.00043835,30]
[325343867,1714745448538,-500.0,0.00043835,30]
[325343868,1714745448547,-903.94,0.00043835,30]
[325343869,1714745448557,-1526.59,0.00043835,30]
[325343870,1714745448566,-1123.13,0.00043835,30]
[325343871,1714745448575,-1011.36,0.00043835,30]
[325343872,1714745448585,-500.0,0.00043835,30]
[325343873,1714745448594,-500.0,0.00043835,30]
[325343874,1714745448603,-661.72,0.00043835,30]
[325343875,1714745448612,-500.0,0.00043835,30]
[325343876,1714745448624,-622.65,0.00043835,30]
[325343877,1714745448632,-500.0,0.00043835,30]
[325343878,1714745448641,-500.0,0.00043835,30]
[325343879,1714745448650,-1141.58,0.00043835,30]
[325343880,1714745448659,-1707.29,0.00043835,30]
[325343881,1714745448669,-1535.26,0.00043835,30]
[325343882,1714745448678,-500.0,0.00043835,30]
[325343883,1714745448686,-500.0,0.00043835,30]
[325343884,1714745448695,-500.0,0.00043835,30]
[325343885,1714745448704,-3414.87,0.00043835,30]
[325343886,1714745448713,-500.0,0.00043835,30]
[325343887,1714745448723,-500.0,0.00043835,30]
[325343888,1714745448732,-500.0,0.00043835,30]
[325343889,1714745448742,-500.0,0.00043835,30]
[325343890,1714745448751,-1980.36,0.00043835,30]
[325343891,1714745448760,-1244.73,0.00043835,30]
[325343892,1714745448770,-604.32,0.00043835,30]
[325343893,1714745448779,-1736.71,0.00043835,30]
[325343894,1714745448788,-2216.36,0.00043835,30]
[325343895,1714745448797,-1140.69,0.00043835,30]
[325343896,1714745448806,-2057.37,0.00043835,30]
[325343897,1714745448816,-500.0,0.00043835,30]
[325343898,1714745448826,-500.0,0.00043835,30]
[325343899,1714745448836,-1941.96,0.00043835,30]
[325343900,1714745448845,-7589.49,0.00043835,30]
[325343901,1714745448857,-500.0,0.00043835,30]
[325343902,1714745448870,-500.0,0.00043835,30]
[325343903,1714745448880,-514.34,0.00043835,30]
[325343904,1714745448891,-500.96,0.00043835,30]
[325343905,1714745448902,-500.0,0.00043835,30]
[325343906,1714745448912,-1529.05,0.00043835,30]
[325343907,1714745448922,-500.0,0.00043835,30]
[325343908,1714745448932,-500.0,0.00043835,30]
[325343909,1714745448942,-500.0,0.00043835,30]
[325343910,1714745448951,-500.0,0.00043835,30]
[325343911,1714745448962,-1017.41,0.00043835,30]
[325343912,1714745448972,-500.0,0.00043835,30]
[325343913,1714745448983,-1424.56,0.00043835,30]
[325343914,1714745448993,-1505.24,0.00043835,30]
[325343915,1714745449003,-500.0,0.00043835,30]
[325343916,1714745449013,-500.0,0.00043835,30]
[325343917,1714745449024,-4369.24,0.00043835,30]
[325343918,1714745449036,-500.0,0.00043835,30]
[325343919,1714745449047,-500.0,0.00043835,30]
[325343920,1714745449058,-910.58,0.00043835,30]
[325343921,1714745449069,-500.0,0.00043835,30]
[325343922,1714745449079,-500.0,0.00043835,30]
[325343923,1714745449090,-500.0,0.00043835,30]
[325343924,1714745449100,-500.0,0.00043835,30]
[325343925,1714745449111,-500.0,0.00043835,30]
[325343926,1714745449123,-500.88456016,0.00043835,30]
[325343927,1714745449133,-500.0,0.00043835,30]
[325343928,1714745449142,-500.0,0.00043835,30]
[325343929,1714745449152,-500.0,0.00043835,30]
[325343930,1714745449162,-497.97295661,0.00043835,30]
[325343931,1714745449172,-500.0,0.00043835,30]
[325343932,1714745449182,-2060.24,0.00043835,30]
[325343933,1714745449191,-498.6391163,0.00043835,30]
[325343934,1714745449201,-500.0,0.00043835,30]
[325343935,1714745449211,-1295.43,0.00043835,30]
[325343936,1714745449220,-562.23,0.00043835,30]
[325343937,1714745449229,-500.0,0.00043835,30]
[325343938,1714745449239,-500.0,0.00043835,30]
[325343939,1714745449248,-738.26,0.00043835,30]
[325343940,1714745449258,-1597.59,0.00043835,30]
[325343941,1714745449267,-500.0,0.00043835,30]
[325343942,1714745449277,-504.36001104,0.00043835,30]
[325343943,1714745449287,-814.94,0.00043835,30]
[325343944,1714745449296,-500.0,0.00043835,30]
[325343945,1714745449305,-500.0,0.00043835,30]
[325343946,1714745449315,-1087.87,0.00043835,30]
[325343947,1714745449324,-638.11,0.00043835,30]
[325343948,1714745449334,-1062.53,0.00043835,30]
[325343949,1714745449343,-2030.52,0.00043835,30]
[325343950,1714745449353,-2336.22,0.00043835,30]
[325343951,1714745449362,-500.0,0.00043835,30]
[325343952,1714745449375,-767.77,0.00043835,30]
[325343953,1714745449384,-1215.57,0.00043835,30]
[325343954,1714745449394,-500.0,0.00043835,30]
[325343955,1714745449404,-867.54,0.00043835,30]
[325343956,1714745449413,-650.71,0.00043835,30]
[325343957,1714745449423,-500.0,0.00043835,30]
[325343958,1714745449433,-3820.54,0.00043835,30]
[325343959,1714745449443,-500.0,0.00043835,30]
[325343960,1714745449454,-500.0,0.00043835,30]
[325343961,1714745449464,-500.70098242,0.00043835,30]
[325343962,1714745449474,-500.0,0.00043835,30]
[325343963,1714745449484,-545.17499927,0.00043835,30]
[325343964,1714745449495,-1161.88,0.00043835,30]
[325343965,1714745449506,-1087.79,0.00043835,30]
[325343966,1714745449516,-500.0,0.00043835,30]
[325343967,1714745449526,-500.0,0.00043835,30]
[325343968,1714745449536,-500.0,0.00043835,30]
[325343969,1714745449547,-1359.99,0.00043835,30]
[325343970,1714745449558,-4996.54,0.00043835,30]
[325343971,1714745449568,-1509.61,0.00043835,30]
[325343972,1714745449580,-500.0,0.00043835,30]
[325343973,1714745449591,-500.0,0.00043835,30]
[325343974,1714745449602,-500.0,0.00043835,30]
[325343975,1714745449613,-500.0,0.00043835,30]
[325343976,1714745449628,-1909.45,0.00043835,30]
[325343977,1714745449638,-500.0,0.00043835,30]
[325343978,1714745449650,-599.22,0.00043835,30]
[325343979,1714745449661,-686.06,0.00043835,30]
[325343980,1714745449671,-500.0,0.00043835,30]
[325343981,1714745449683,-500.0,0.00043835,30]
[325343982,1714745449694,-500.0,0.00043835,30]
[325343983,1714745449706,-1021.19,0.00043835,30]
[325343984,1714745449716,-500.0,0.00043835,30]
[325343985,1714745449728,-500.0,0.00043835,30]
[325343986,1714745449738,-500.0,0.00043835,30]
[325343987,1714745449751,-500.0,0.00043835,30]
[325343988,1714745449761,-948.64,0.00043835,30]
[325343989,1714745449772,-858.52,0.00043835,30]
[325343990,1714745449782,-500.0,0.00043835,30]
[325343991,1714745449792,-310.54,0.00043835,7]
[325343992,1714745449801,-500.0,0.00043835,30]
[325343993,1714745449811,-500.0,0.00043835,30]
[325343994,1714745449821,-527.31854953,0.00043835,30]
[325343995,1714745449831,-864.36,0.00043835,30]
[325343996,1714745449840,-500.0,0.00043835,30]
[325343997,1714745449851,-500.0,0.00043835,30]
[325343998,1714745449862,-500.0,0.00043835,30]
[325343999,1714745449874,-500.0,0.00043835,30]
[325344000,1714745449884,-500.0,0.00043835,30]
[325344001,1714745449894,-500.0,0.00043835,30]
[325344002,1714745449906,-1206.91,0.00043835,30]
[325344003,1714745449917,-500.0,0.00043835,30]
[325344004,1714745449927,-15207.38,0.00043835,30]
[325344005,1714745449937,-500.0,0.00043835,30]
[325344006,1714745449946,-500.0,0.00043835,30]
[325344007,1714745449956,-500.0,0.00043835,30]
[325344008,1714745449967,-500.0,0.00043835,30]
[325344009,1714745449977,-574.07,0.00043835,30]
[325344010,1714745449987,-262.44749368,0.00043835,30]
[325344011,1714745449996,-500.0,0.00043835,30]
[325344012,1714745450006,-586.94,0.00043835,30]
[325344013,1714745450016,-686.99,0.00043835,30]
[325344014,1714745450026,-921.52,0.00043835,30]
[325344015,1714745450036,-500.0,0.00043835,30]
[325344016,1714745450046,-1002.0,0.00043835,30]
[325344017,1714745450056,-1165.58,0.00043835,30]
[325344018,1714745450066,-500.0,0.00043835,30]
[325344019,1714745450076,-500.0,0.00043835,30]
[325344020,1714745450085,-500.0,0.00043835,30]
[325344021,1714745450095,-500.0,0.00043835,30]
[325344022,1714745450104,-500.0,0.00043835,30]
[325344023,1714745450113,-3778.33,0.00043835,30]
[325344024,1714745450126,-500.0,0.00043835,30]
[325344025,1714745450137,-1651.3,0.00043835,30]
[325344026,1714745450147,-1935.6,0.00043835,30]
[325344027,1714745450157,-500.0,0.00043835,30]
[325344028,1714745450167,-512.93170213,0.00043835,30]
[325344029,1714745450177,-1063.59,0.00043835,30]
[325344030,1714745450187,-500.0,0.00043835,30]
[325344031,1714745450197,-413.48921738,0.00043835,30]
[325344032,1714745450206,-657.61,0.00043835,30]
[325344033,1714745450216,-500.0,0.00043835,30]
[325344034,1714745450226,-500.0,0.00043835,30]
[325344035,1714745450235,-500.0,0.00043835,30]
[325344036,1714745450245,-503.88953236,0.00043835,30]
[325344037,1714745450255,-3598.13,0.00043835,30]
[325344038,1714745450265,-742.37,0.00043835,30]
[325344039,1714745450275,-3889.53,0.00043835,30]
[325344040,1714745450285,-500.0,0.00043835,30]
[325344041,1714745450295,-503.30214465,0.00043835,30]
[325344042,1714745450305,-1198.87,0.00043835,30]
[325344043,1714745450315,-500.0,0.00043835,30]
[325344044,1714745450324,-1032.37,0.00043835,30]
[325344045,1714745450335,-500.0,0.00043835,30]
[325344046,1714745450345,-2271.78,0.00043835,30]
[325344047,1714745450356,-1848.39,0.00043835,30]
[325344048,1714745450369,-500.0,0.00043835,30]
[325344049,1714745450381,-500.0,0.00043835,30]
[325344050,1714745450391,-1481.27,0.00043835,30]
[325344051,1714745450400,-3939.87,0.00043835,30]
[325344052,1714745450411,-500.0,0.00043835,30]
[325344053,1714745450421,-1608.24,0.00043835,30]
[325344054,1714745450430,-2601.16,0.00043835,30]
[325344055,1714745450442,-500.0,0.00043835,30]
[325344056,1714745450452,-500.0,0.00043835,30]
[325344057,1714745450462,-500.0,0.00043835,30]
[325344058,1714745450472,-500.0,0.00043835,30]
[325344059,1714745450482,-500.0,0.00043835,30]
[325344060,1714745450492,-500.0,0.00043835,30]
[325344061,1714745450502,-500.0,0.00043835,30]
[325344062,1714745450512,-1012.33,0.00043835,30]
[325344063,1714745450523,-3198.86,0.00043835,30]
[325344064,1714745450534,-1651.18,0.00043835,30]
[325344065,1714745450545,-9479.82,0.00043835,30]
[325344066,1714745450556,-3704.55,0.00043835,30]
[325344067,1714745450568,-500.0,0.00043835,30]
[325344068,1714745450579,-4184.89,0.00043835,30]
[325344069,1714745450590,-500.0,0.00043835,30]
[325344070,1714745450600,-616.98,0.00043835,30]
[325344071,1714745450610,-1651.8,0.00043835,30]
[325344072,1714745450622,-500.0,0.00043835,30]
[325344073,1714745450632,-2866.64,0.00043835,30]
[325344074,1714745450643,-500.0,0.00043835,30]
[325344075,1714745450654,-501.17841054,0.00043835,30]
[325344076,1714745450667,-500.0,0.00043835,30]
[325344077,1714745450678,-500.0,0.00043835,30]
[325344078,1714745450689,-500.0,0.00043835,30]
[325344079,1714745450700,-500.0,0.00043835,30]
[325344080,1714745450711,-512.77,0.00043835,30]
[325344081,1714745450721,-504.11900017,0.00043835,30]
[325344082,1714745450732,-500.0,0.00043835,30]
[325344083,1714745450743,-500.0,0.00043835,30]
[325344084,1714745450754,-500.0,0.00043835,30]
[325344085,1714745450765,-500.0,0.00043835,30]
[325344086,1714745450775,-689.5,0.00043835,30]
[325344087,1714745450786,-3347.04,0.00043835,30]
[325344088,1714745450797,-500.0,0.00043835,30]
[325344089,1714745450807,-500.0,0.00043835,30]
[325344090,1714745450817,-2080.53,0.00043835,30]
[325344091,1714745450827,-1269.6,0.00043835,2]
[325344092,1714745450838,-198.18236312,0.00043835,30]
[325344093,1714745450848,-1113.97,0.00043835,30]
[325344094,1714745450858,-500.0,0.00043835,30]
[325344095,1714745450871,-600.67,0.00043835,30]
[325344096,1714745450882,-1319.55,0.00043835,30]
[325344097,1714745450892,-754.07,0.00043835,30]
[325344098,1714745450905,-2684.48,0.00043835,30]
[325344099,1714745450915,-1763.5,0.00043835,30]
[325344100,1714745450924,-500.0,0.00043835,30]
[325344101,1714745450935,-1419.85,0.00043835,30]
[325344102,1714745450945,-500.0,0.00043835,30]
[325344103,1714745450955,-508.57,0.00043835,2]
[325344104,1714745450964,-500.0,0.00043835,30]
[325344105,1714745450975,-500.0,0.00043835,30]
[325344106,1714745450985,-500.0,0.00043835,30]
[325344107,1714745450995,-500.0,0.00043835,30]
[325344108,1714745451006,-5404.16,0.00043835,30]
[325344109,1714745451016,-1190.74,0.00043835,30]
[325344110,1714745451026,-1465.05,0.00043835,20]
[325344111,1714745451035,-1465.05,0.00043835,20]
[325344112,1714745451045,-1465.05,0.00043835,20]
[325344113,1714745451055,-1465.05,0.00043835,20]
[325344114,1714745451064,-1465.05,0.00043835,20]
[325344115,1714745451074,-32833.12,0.00043835,30]
[325344116,1714745451084,-500.0,0.00043835,30]
[325344117,1714745451094,-1465.05,0.00043835,20]
[325344118,1714745451104,-500.0,0.00043835,30]
[325344119,1714745451114,-1465.05,0.00043835,20]
[325344120,1714745451125,-3152.57,0.00043835,30]
[325344121,1714745451135,-589.04,0.00043835,30]
[325344122,1714745451145,-1465.05,0.00043835,20]
[325344123,1714745451155,-1465.05,0.00043835,20]
[325344124,1714745451166,-500.0,0.00043835,30]
[325344125,1714745451177,-500.0,0.00043835,30]
[325344126,1714745451421,-1465.05,0.00043835,20]
[325344127,1714745451431,-1465.05,0.00043835,20]
[325344128,1714745451440,-500.0,0.00043835,30]
[325344129,1714745451450,-2000.0,0.00043835,120]
[325344130,1714745451459,-1465.05,0.00043835,20]
[325344131,1714745451468,-500.0,0.00043835,30]
[325344132,1714745451478,-500.0,0.00043835,30]
[325344133,1714745451487,-1465.05,0.00043835,20]
[325344134,1714745451497,-500.0,0.00043835,30]
[325344135,1714745451506,-1465.05,0.00043835,20]
[325344136,1714745451515,-1465.05,0.00043835,20]
[325344137,1714745451525,-1465.05,0.00043835,20]
[325344138,1714745451535,-500.0,0.00043835,30]
[325344139,1714745451544,-1465.05,0.00043835,20]
[325344140,1714745451554,-1465.05,0.00043835,20]
[325344141,1714745451564,-1465.05,0.00043835,20]
[325344142,1714745451574,-782.62,0.00043835,30]
[325344143,1714745451583,-500.0,0.00043835,30]
[325344144,1714745451593,-1465.05,0.00043835,20]
[325344145,1714745451602,-500.0,0.00043835,30]
[325344146,1714745451612,-812.41,0.00043835,30]
[325344147,1714745451622,-1465.05,0.00043835,20]
[325344148,1714745451631,-1465.05,0.00043835,20]
[325344149,1714745451640,-517.79303433,0.00043835,30]
[325344150,1714745451649,-1465.05,0.00043835,20]
[325344151,1714745451659,-1465.24,0.00043835,20]
[325344152,1714745451668,-500.0,0.00043835,30]
[325344153,1714745451677,-500.0,0.00043835,30]
[325344154,1714745451687,-500.0,0.00043835,30]
[325344155,1714745451696,-500.0,0.00043835,30]
[325344156,1714745451706,-1366.86,0.00043835,30]
[325344157,1714745451715,-2304.63,0.00043835,30]
[325344158,1714745451725,-500.0,0.00043835,30]
[325344159,1714745451735,-500.0,0.00043835,30]
[325344160,1714745451744,-500.0,0.00043835,30]
[325344161,1714745451753,-500.0,0.00043835,30]
[325344162,1714745451764,-500.0,0.00043835,30]
[325344163,1714745451775,-2337.56,0.00043835,2]
[325344164,1714745451787,-500.0,0.00043835,30]
[325344165,1714745451797,-500.0,0.00043835,30]
[325344166,1714745451807,-3784.01,0.00043835,30]
[325344167,1714745451818,-500.0,0.00043835,30]
[325344168,1714745451829,-608.77,0.00043835,30]
[325344169,1714745451840,-500.0,0.00043835,30]
[325344170,1714745451850,-500.0,0.00043835,30]
[325344171,1714745451860,-1148.94,0.00043835,30]
[325344172,1714745451875,-500.0,0.00043835,30]
[325344173,1714745451885,-500.0,0.00043835,30]
[325344174,1714745451895,-1736.64,0.00043835,30]
[325344175,1714745451906,-500.0,0.00043835,30]
[325344176,1714745451916,-1000.0,0.00043835,15]
[325344177,1714745451926,-1145.71,0.00043835,30]
[325344178,1714745451936,-500.0,0.00043835,30]
[325344179,1714745451945,-1406.67,0.00043835,30]
[325344180,1714745451955,-500.0,0.00043835,30]
[325344181,1714745451964,-5828.27,0.00043835,30]
[325344182,1714745451974,-3588.23,0.00043835,30]
[325344183,1714745451984,-500.0,0.00043835,30]
[325344184,1714745451994,-1644.72,0.00043835,30]
[325344185,1714745452004,-500.0,0.00043835,30]
[325344186,1714745452014,-500.0,0.00043835,30]
[325344187,1714745452024,-9522.78,0.00043835,30]
[325344188,1714745452034,-500.0,0.00043835,30]
[325344189,1714745452044,-1121.59,0.00043835,30]
[325344190,1714745452054,-1566.28,0.00043835,30]
[325344191,1714745452064,-1786.19,0.00043835,30]
[325344192,1714745452074,-584.75,0.00043835,30]
[325344193,1714745452084,-2122.66,0.00043835,30]
[325344194,1714745452094,-259.41163307,0.00043835,30]
[325344195,1714745452104,-500.0,0.00043835,30]
[325344196,1714745452114,-500.0,0.00043835,30]
[325344197,1714745452125,-997.31,0.00043835,30]
[325344198,1714745452135,-540.47,0.00043835,30]
[325344199,1714745452145,-774.85,0.00043835,30]
[325344200,1714745452154,-1733.72,0.00043835,30]
[325344201,1714745452164,-500.0,0.00043835,30]
[325344202,1714745452174,-2799.95,0.00043835,30]
[325344203,1714745452184,-500.0,0.00043835,30]
[325344204,1714745452195,-500.0,0.00043835,30]
[325344205,1714745452205,-7863.95,0.00043835,30]
[325344206,1714745452215,-3059.38,0.00043835,30]
[325344207,1714745452225,-500.0,0.00043835,30]
[325344208,1714745452235,-1868.73,0.00043835,30]
[325344209,1714745452244,-500.0,0.00043835,30]
[325344210,1714745452255,-1445.95,0.00043835,30]
[325344211,1714745452265,-25660.85,0.00043835,30]
[325344212,1714745452275,-766.0,0.00043835,30]
[325344213,1714745452285,-500.0,0.00043835,30]
[325344214,1714745452295,-1667.06,0.00043835,30]
[325344215,1714745452305,-500.0,0.00043835,30]
[325344216,1714745452316,-605.03,0.00043835,30]
[325344217,1714745452326,-5472.22,0.00043835,30]
[325344218,1714745452337,-1599.92,0.00043835,30]
[325344219,1714745452352,-1041.49,0.00043835,30]
[325344220,1714745452362,-969.94,0.00043835,30]
[325344221,1714745452375,-859.46,0.00043835,30]
[325344222,1714745452385,-500.0,0.00043835,30]
[325344223,1714745452395,-2158.15,0.00043835,30]
[325344224,1714745452405,-3522.41,0.00043835,30]
[325344225,1714745452415,-500.0,0.00043835,30]
[325344226,1714745452426,-500.0,0.00043835,30]
[325344227,1714745452436,-7720.08,0.00043835,30]
[325344228,1714745452445,-2804.63,0.00043835,30]
[325344229,1714745452455,-500.0,0.00043835,30]
[325344230,1714745452465,-1620.11,0.00043835,30]
[325344231,1714745452474,-549.06,0.00043835,30]
[325344232,1714745452485,-500.0,0.00043835,30]
[325344233,1714745452495,-3728.89,0.00043835,30]
[325344234,1714745452505,-508.86200691,0.00043835,30]
[325344235,1714745452515,-500.0,0.00043835,30]
[325344236,1714745452525,-500.0,0.00043835,30]
[325344237,1714745452534,-500.0,0.00043835,30]
[325344238,1714745452544,-500.0,0.00043835,30]
[325344239,1714745452553,-379.06047475,0.00043835,30]
[325344240,1714745452563,-500.0,0.00043835,30]
[325344241,1714745452573,-1251.98,0.00043835,30]
[325344242,1714745452583,-1192.35,0.00043835,30]
[325344243,1714745452592,-2701.11,0.00043835,30]
[325344244,1714745452602,-918.66,0.00043835,30]
[325344245,1714745452612,-556.92,0.00043835,30]
[325344246,1714745452623,-1380.09,0.00043835,30]
[325344247,1714745452632,-3488.36,0.00043835,30]
[325344248,1714745452641,-13978.57,0.00043835,30]
[325344249,1714745452651,-984.87,0.00043835,30]
[325344250,1714745452662,-1299.29,0.00043835,30]
[325344251,1714745452672,-588.85,0.00043835,30]
[325344252,1714745452682,-500.0,0.00043835,30]
[325344253,1714745452692,-500.0,0.00043835,30]
[325344254,1714745452702,-4790.7,0.00043835,30]
[325344255,1714745452712,-500.0,0.00043835,30]
[325344256,1714745452722,-500.0,0.00043835,30]
[325344257,1714745452731,-964.02697503,0.00043835,30]
[325344258,1714745453775,-10852.87302497,0.00043835,30]
[325344259,1714745453785,-1728.16,0.00043835,30]
[325344260,1714745453795,-1343.68,0.00043835,30]
[325344261,1714745453804,-686.98,0.00043835,30]
[325344262,1714745453813,-4730.02,0.00043835,30]
[325344263,1714745453823,-500.0,0.00043835,30]
[325344264,1714745453832,-500.0,0.00043835,30]
[325344265,1714745453842,-3974.99,0.00043835,30]
[325344266,1714745453851,-5064.42,0.00043835,30]
[325344267,1714745453861,-699.13,0.00043835,30]
[325344268,1714745453875,-1297.04,0.00043835,30]
[325344269,1714745453885,-2824.3,0.00043835,30]
[325344270,1714745453895,-500.0,0.00043835,30]
[325344271,1714745453904,-500.0,0.00043835,30]
[325344272,1714745453918,-2158.34,0.00043835,30]
[325344273,1714745453927,-1669.24,0.00043835,30]
[325344274,1714745454039,-653.3,0.00043835,30]
[325344275,1714745454049,-898.64,0.00043835,30]
[325344276,1714745454059,-661.12,0.00043835,30]
[325344277,1714745454068,-500.0,0.00043835,30]
[325344278,1714745454079,-1138.68,0.00043835,30]
[325344279,1714745454088,-925.85,0.00043835,30]
[325344280,1714745454097,-1219.93,0.00043835,30]
[325344281,1714745454107,-500.0,0.00043835,30]
[325344282,1714745454119,-24249.63,0.00043835,30]
[325344283,1714745454128,-547.02746685,0.00043835,30]
[325344284,1714745454137,-506.40590368,0.00043835,30]
[325344285,1714745454147,-3348.7,0.00043835,30]
[325344286,1714745454156,-3676.69,0.00043835,30]
[325344287,1714745454166,-500.0,0.00043835,30]
[325344288,1714745454175,-26478.2,0.00043835,30]
[325344289,1714745454185,-500.0,0.00043835,30]
[325344290,1714745454194,-500.0,0.00043835,30]
[325344291,1714745454204,-812.98,0.00043835,30]
[325344292,1714745454214,-500.0,0.00043835,30]
[325344293,1714745454224,-500.0,0.00043835,30]
[325344294,1714745454234,-500.0,0.00043835,30]
[325344295,1714745454243,-851.56,0.00043835,30]
[325344296,1714745454252,-1481.69,0.00043835,30]